Workbook

Sheet Danh sách Kiểm kê
C1: Danh sách Kiểm kê | F1: Tô sáng các mục để đặt hàng lại? | H1: Có
B3: Các mục được gắn cờ để đặt hàng lại | C3: ID Kiểm kê | D3: Tên | E3: Mô tả | F3: Đơn Giá | G3: Số lượng Còn Hàng | H3: Giá trị Kiểm kê | I3: Ngưỡng Đặt hàng lại | J3: Thời gian Đặt hàng lại tính bằng Ngày | K3: Số lượng được Đặt hàng lại | L3: Không tiếp tục?
B4: =IFERROR((Danh_sách_Kiểm_kê[[#This Row],[Số lượng Còn Hàng]]<=Danh_sách_Kiểm_kê[[#This Row],[Ngưỡng Đặt hàng lại]])*(Danh_sách_Kiểm_kê[[#This Row],[Không tiếp tục?]]="")*valHighlight,0) -> 1 | C4: IN0001 | D4: Mục 1 | E4: Mô tả 1 | F4: 1,122,000.00 ₫ | G4: 25 | H4: =Danh_sách_Kiểm_kê[[#This Row],[Đơn Giá]]*Danh_sách_Kiểm_kê[[#This Row],[Số lượng Còn Hàng]] -> 28,050,000.00 ₫ | I4: 29 | J4: 13 | K4: 50
B5: =IFERROR((Danh_sách_Kiểm_kê[[#This Row],[Số lượng Còn Hàng]]<=Danh_sách_Kiểm_kê[[#This Row],[Ngưỡng Đặt hàng lại]])*(Danh_sách_Kiểm_kê[[#This Row],[Không tiếp tục?]]="")*valHighlight,0) -> 1 | C5: IN0002 | D5: Mục 2 | E5: Mô tả 2 | F5: 2,046,000.00 ₫ | G5: 132 | H5: =Danh_sách_Kiểm_kê[[#This Row],[Đơn Giá]]*Danh_sách_Kiểm_kê[[#This Row],[Số lượng Còn Hàng]] -> 270,072,000.00 ₫ | I5: 231 | J5: 4 | K5: 50
B6: =IFERROR((Danh_sách_Kiểm_kê[[#This Row],[Số lượng Còn Hàng]]<=Danh_sách_Kiểm_kê[[#This Row],[Ngưỡng Đặt hàng lại]])*(Danh_sách_Kiểm_kê[[#This Row],[Không tiếp tục?]]="")*valHighlight,0) -> 0 | C6: IN0003 | D6: Mục 3 | E6: Mô tả 3 | F6: 1,254,000.00 ₫ | G6: 151 | H6: =Danh_sách_Kiểm_kê[[#This Row],[Đơn Giá]]*Danh_sách_Kiểm_kê[[#This Row],[Số lượng Còn Hàng]] -> 189,354,000.00 ₫ | I6: 114 | J6: 11 | K6: 150
B7: =IFERROR((Danh_sách_Kiểm_kê[[#This Row],[Số lượng Còn Hàng]]<=Danh_sách_Kiểm_kê[[#This Row],[Ngưỡng Đặt hàng lại]])*(Danh_sách_Kiểm_kê[[#This Row],[Không tiếp tục?]]="")*valHighlight,0) -> 0 | C7: IN0004 | D7: Mục 4 | E7: Mô tả 4 | F7: 418,000.00 ₫ | G7: 186 | H7: =Danh_sách_Kiểm_kê[[#This Row],[Đơn Giá]]*Danh_sách_Kiểm_kê[[#This Row],[Số lượng Còn Hàng]] -> 77,748,000.00 ₫ | I7: 158 | J7: 6 | K7: 50
B8: =IFERROR((Danh_sách_Kiểm_kê[[#This Row],[Số lượng Còn Hàng]]<=Danh_sách_Kiểm_kê[[#This Row],[Ngưỡng Đặt hàng lại]])*(Danh_sách_Kiểm_kê[[#This Row],[Không tiếp tục?]]="")*valHighlight,0) -> 0 | C8: IN0005 | D8: Mục 5 | E8: Mô tả 5 | F8: 1,650,000.00 ₫ | G8: 62 | H8: =Danh_sách_Kiểm_kê[[#This Row],[Đơn Giá]]*Danh_sách_Kiểm_kê[[#This Row],[Số lượng Còn Hàng]] -> 102,300,000.00 ₫ | I8: 39 | J8: 12 | K8: 50
B9: =IFERROR((Danh_sách_Kiểm_kê[[#This Row],[Số lượng Còn Hàng]]<=Danh_sách_Kiểm_kê[[#This Row],[Ngưỡng Đặt hàng lại]])*(Danh_sách_Kiểm_kê[[#This Row],[Không tiếp tục?]]="")*valHighlight,0) -> 1 | C9: IN0006 | D9: Mục 6 | E9: Mô tả 6 | F9: 242,000.00 ₫ | G9: 5 | H9: =Danh_sách_Kiểm_kê[[#This Row],[Đơn Giá]]*Danh_sách_Kiểm_kê[[#This Row],[Số lượng Còn Hàng]] -> 1,210,000.00 ₫ | I9: 9 | J9: 13 | K9: 150
B10: =IFERROR((Danh_sách_Kiểm_kê[[#This Row],[Số lượng Còn Hàng]]<=Danh_sách_Kiểm_kê[[#This Row],[Ngưỡng Đặt hàng lại]])*(Danh_sách_Kiểm_kê[[#This Row],[Không tiếp tục?]]="")*valHighlight,0) -> 0 | C10: IN0007 | D10: Mục 7 | E10: Mô tả 7 | F10: 1,232,000.00 ₫ | G10: 58 | H10: =Danh_sách_Kiểm_kê[[#This Row],[Đơn Giá]]*Danh_sách_Kiểm_kê[[#This Row],[Số lượng Còn Hàng]] -> 71,456,000.00 ₫ | I10: 109 | J10: 7 | K10: 100 | L10: có
B11: =IFERROR((Danh_sách_Kiểm_kê[[#This Row],[Số lượng Còn Hàng]]<=Danh_sách_Kiểm_kê[[#This Row],[Ngưỡng Đặt hàng lại]])*(Danh_sách_Kiểm_kê[[#This Row],[Không tiếp tục?]]="")*valHighlight,0) -> 1 | C11: IN0008 | D11: Mục 8 | E11: Mô tả 8 | F11: 836,000.00 ₫ | G11: 101 | H11: =Danh_sách_Kiểm_kê[[#This Row],[Đơn Giá]]*Danh_sách_Kiểm_kê[[#This Row],[Số lượng Còn Hàng]] -> 84,436,000.00 ₫ | I11: 162 | J11: 3 | K11: 100
B12: =IFERROR((Danh_sách_Kiểm_kê[[#This Row],[Số lượng Còn Hàng]]<=Danh_sách_Kiểm_kê[[#This Row],[Ngưỡng Đặt hàng lại]])*(Danh_sách_Kiểm_kê[[#This Row],[Không tiếp tục?]]="")*valHighlight,0) -> 0 | C12: IN0009 | D12: Mục 9 | E12: Mô tả 9 | F12: 1,298,000.00 ₫ | G12: 122 | H12: =Danh_sách_Kiểm_kê[[#This Row],[Đơn Giá]]*Danh_sách_Kiểm_kê[[#This Row],[Số lượng Còn Hàng]] -> 158,356,000.00 ₫ | I12: 82 | J12: 3 | K12: 150
B13: =IFERROR((Danh_sách_Kiểm_kê[[#This Row],[Số lượng Còn Hàng]]<=Danh_sách_Kiểm_kê[[#This Row],[Ngưỡng Đặt hàng lại]])*(Danh_sách_Kiểm_kê[[#This Row],[Không tiếp tục?]]="")*valHighlight,0) -> 1 | C13: IN0010 | D13: Mục 10 | E13: Mô tả 10 | F13: 1,100,000.00 ₫ | G13: 175 | H13: =Danh_sách_Kiểm_kê[[#This Row],[Đơn Giá]]*Danh_sách_Kiểm_kê[[#This Row],[Số lượng Còn Hàng]] -> 192,500,000.00 ₫ | I13: 283 | J13: 8 | K13: 150
B14: =IFERROR((Danh_sách_Kiểm_kê[[#This Row],[Số lượng Còn Hàng]]<=Danh_sách_Kiểm_kê[[#This Row],[Ngưỡng Đặt hàng lại]])*(Danh_sách_Kiểm_kê[[#This Row],[Không tiếp tục?]]="")*valHighlight,0) -> 1 | C14: IN0011 | D14: Mục 11 | E14: Mô tả 11 | F14: 1,298,000.00 ₫ | G14: 176 | H14: =Danh_sách_Kiểm_kê[[#This Row],[Đơn Giá]]*Danh_sách_Kiểm_kê[[#This Row],[Số lượng Còn Hàng]] -> 228,448,000.00 ₫ | I14: 229 | J14: 1 | K14: 100
B15: =IFERROR((Danh_sách_Kiểm_kê[[#This Row],[Số lượng Còn Hàng]]<=Danh_sách_Kiểm_kê[[#This Row],[Ngưỡng Đặt hàng lại]])*(Danh_sách_Kiểm_kê[[#This Row],[Không tiếp tục?]]="")*valHighlight,0) -> 1 | C15: IN0012 | D15: Mục 12 | E15: Mô tả 12 | F15: 396,000.00 ₫ | G15: 22 | H15: =Danh_sách_Kiểm_kê[[#This Row],[Đơn Giá]]*Danh_sách_Kiểm_kê[[#This Row],[Số lượng Còn Hàng]] -> 8,712,000.00 ₫ | I15: 36 | J15: 12 | K15: 50
B16: =IFERROR((Danh_sách_Kiểm_kê[[#This Row],[Số lượng Còn Hàng]]<=Danh_sách_Kiểm_kê[[#This Row],[Ngưỡng Đặt hàng lại]])*(Danh_sách_Kiểm_kê[[#This Row],[Không tiếp tục?]]="")*valHighlight,0) -> 1 | C16: IN0013 | D16: Mục 13 | E16: Mô tả 13 | F16: 572,000.00 ₫ | G16: 72 | H16: =Danh_sách_Kiểm_kê[[#This Row],[Đơn Giá]]*Danh_sách_Kiểm_kê[[#This Row],[Số lượng Còn Hàng]] -> 41,184,000.00 ₫ | I16: 102 | J16: 9 | K16: 100
B17: =IFERROR((Danh_sách_Kiểm_kê[[#This Row],[Số lượng Còn Hàng]]<=Danh_sách_Kiểm_kê[[#This Row],[Ngưỡng Đặt hàng lại]])*(Danh_sách_Kiểm_kê[[#This Row],[Không tiếp tục?]]="")*valHighlight,0) -> 1 | C17: IN0014 | D17: Mục 14 | E17: Mô tả 14 | F17: 924,000.00 ₫ | G17: 62 | H17: =Danh_sách_Kiểm_kê[[#This Row],[Đơn Giá]]*Danh_sách_Kiểm_kê[[#This Row],[Số lượng Còn Hàng]] -> 57,288,000.00 ₫ | I17: 83 | J17: 2 | K17: 100
B18: =IFERROR((Danh_sách_Kiểm_kê[[#This Row],[Số lượng Còn Hàng]]<=Danh_sách_Kiểm_kê[[#This Row],[Ngưỡng Đặt hàng lại]])*(Danh_sách_Kiểm_kê[[#This Row],[Không tiếp tục?]]="")*valHighlight,0) -> 0 | C18: IN0015 | D18: Mục 15 | E18: Mô tả 15 | F18: 704,000.00 ₫ | G18: 46 | H18: =Danh_sách_Kiểm_kê[[#This Row],[Đơn Giá]]*Danh_sách_Kiểm_kê[[#This Row],[Số lượng Còn Hàng]] -> 32,384,000.00 ₫ | I18: 23 | J18: 15 | K18: 50
B19: =IFERROR((Danh_sách_Kiểm_kê[[#This Row],[Số lượng Còn Hàng]]<=Danh_sách_Kiểm_kê[[#This Row],[Ngưỡng Đặt hàng lại]])*(Danh_sách_Kiểm_kê[[#This Row],[Không tiếp tục?]]="")*valHighlight,0) -> 1 | C19: IN0016 | D19: Mục 16 | E19: Mô tả 16 | F19: 1,980,000.00 ₫ | G19: 96 | H19: =Danh_sách_Kiểm_kê[[#This Row],[Đơn Giá]]*Danh_sách_Kiểm_kê[[#This Row],[Số lượng Còn Hàng]] -> 190,080,000.00 ₫ | I19: 180 | J19: 3 | K19: 50
B20: =IFERROR((Danh_sách_Kiểm_kê[[#This Row],[Số lượng Còn Hàng]]<=Danh_sách_Kiểm_kê[[#This Row],[Ngưỡng Đặt hàng lại]])*(Danh_sách_Kiểm_kê[[#This Row],[Không tiếp tục?]]="")*valHighlight,0) -> 0 | C20: IN0017 | D20: Mục 17 | E20: Mô tả 17 | F20: 2,134,000.00 ₫ | G20: 57 | H20: =Danh_sách_Kiểm_kê[[#This Row],[Đơn Giá]]*Danh_sách_Kiểm_kê[[#This Row],[Số lượng Còn Hàng]] -> 121,638,000.00 ₫ | I20: 98 | J20: 12 | K20: 50 | L20: Có
B21: =IFERROR((Danh_sách_Kiểm_kê[[#This Row],[Số lượng Còn Hàng]]<=Danh_sách_Kiểm_kê[[#This Row],[Ngưỡng Đặt hàng lại]])*(Danh_sách_Kiểm_kê[[#This Row],[Không tiếp tục?]]="")*valHighlight,0) -> 1 | C21: IN0018 | D21: Mục 18 | E21: Mô tả 18 | F21: 264,000.00 ₫ | G21: 6 | H21: =Danh_sách_Kiểm_kê[[#This Row],[Đơn Giá]]*Danh_sách_Kiểm_kê[[#This Row],[Số lượng Còn Hàng]] -> 1,584,000.00 ₫ | I21: 7 | J21: 13 | K21: 50
B22: =IFERROR((Danh_sách_Kiểm_kê[[#This Row],[Số lượng Còn Hàng]]<=Danh_sách_Kiểm_kê[[#This Row],[Ngưỡng Đặt hàng lại]])*(Danh_sách_Kiểm_kê[[#This Row],[Không tiếp tục?]]="")*valHighlight,0) -> 1 | C22: IN0019 | D22: Mục 19 | E22: Mô tả 19 | F22: 1,804,000.00 ₫ | G22: 143 | H22: =Danh_sách_Kiểm_kê[[#This Row],[Đơn Giá]]*Danh_sách_Kiểm_kê[[#This Row],[Số lượng Còn Hàng]] -> 257,972,000.00 ₫ | I22: 164 | J22: 12 | K22: 150
B23: =IFERROR((Danh_sách_Kiểm_kê[[#This Row],[Số lượng Còn Hàng]]<=Danh_sách_Kiểm_kê[[#This Row],[Ngưỡng Đặt hàng lại]])*(Danh_sách_Kiểm_kê[[#This Row],[Không tiếp tục?]]="")*valHighlight,0) -> 0 | C23: IN0020 | D23: Mục 20 | E23: Mô tả 20 | F23: 352,000.00 ₫ | G23: 124 | H23: =Danh_sách_Kiểm_kê[[#This Row],[Đơn Giá]]*Danh_sách_Kiểm_kê[[#This Row],[Số lượng Còn Hàng]] -> 43,648,000.00 ₫ | I23: 113 | J23: 14 | K23: 50
B24: =IFERROR((Danh_sách_Kiểm_kê[[#This Row],[Số lượng Còn Hàng]]<=Danh_sách_Kiểm_kê[[#This Row],[Ngưỡng Đặt hàng lại]])*(Danh_sách_Kiểm_kê[[#This Row],[Không tiếp tục?]]="")*valHighlight,0) -> 0 | C24: IN0021 | D24: Mục 21 | E24: Mô tả 21 | F24: 418,000.00 ₫ | G24: 112 | H24: =Danh_sách_Kiểm_kê[[#This Row],[Đơn Giá]]*Danh_sách_Kiểm_kê[[#This Row],[Số lượng Còn Hàng]] -> 46,816,000.00 ₫ | I24: 75 | J24: 11 | K24: 50
B25: =IFERROR((Danh_sách_Kiểm_kê[[#This Row],[Số lượng Còn Hàng]]<=Danh_sách_Kiểm_kê[[#This Row],[Ngưỡng Đặt hàng lại]])*(Danh_sách_Kiểm_kê[[#This Row],[Không tiếp tục?]]="")*valHighlight,0) -> 0 | C25: IN0022 | D25: Mục 22 | E25: Mô tả 22 | F25: 528,000.00 ₫ | G25: 182 | H25: =Danh_sách_Kiểm_kê[[#This Row],[Đơn Giá]]*Danh_sách_Kiểm_kê[[#This Row],[Số lượng Còn Hàng]] -> 96,096,000.00 ₫ | I25: 132 | J25: 15 | K25: 150
B26: =IFERROR((Danh_sách_Kiểm_kê[[#This Row],[Số lượng Còn Hàng]]<=Danh_sách_Kiểm_kê[[#This Row],[Ngưỡng Đặt hàng lại]])*(Danh_sách_Kiểm_kê[[#This Row],[Không tiếp tục?]]="")*valHighlight,0) -> 0 | C26: IN0023 | D26: Mục 23 | E26: Mô tả 23 | F26: 638,000.00 ₫ | G26: 106 | H26: =Danh_sách_Kiểm_kê[[#This Row],[Đơn Giá]]*Danh_sách_Kiểm_kê[[#This Row],[Số lượng Còn Hàng]] -> 67,628,000.00 ₫ | I26: 142 | J26: 1 | K26: 150 | L26: Có
B27: =IFERROR((Danh_sách_Kiểm_kê[[#This Row],[Số lượng Còn Hàng]]<=Danh_sách_Kiểm_kê[[#This Row],[Ngưỡng Đặt hàng lại]])*(Danh_sách_Kiểm_kê[[#This Row],[Không tiếp tục?]]="")*valHighlight,0) -> 0 | C27: IN0024 | D27: Mục 24 | E27: Mô tả 24 | F27: 1,650,000.00 ₫ | G27: 173 | H27: =Danh_sách_Kiểm_kê[[#This Row],[Đơn Giá]]*Danh_sách_Kiểm_kê[[#This Row],[Số lượng Còn Hàng]] -> 285,450,000.00 ₫ | I27: 127 | J27: 9 | K27: 100
B28: =IFERROR((Danh_sách_Kiểm_kê[[#This Row],[Số lượng Còn Hàng]]<=Danh_sách_Kiểm_kê[[#This Row],[Ngưỡng Đặt hàng lại]])*(Danh_sách_Kiểm_kê[[#This Row],[Không tiếp tục?]]="")*valHighlight,0) -> 0 | C28: IN0025 | D28: Mục 25 | E28: Mô tả 25 | F28: 308,000.00 ₫ | G28: 28 | H28: =Danh_sách_Kiểm_kê[[#This Row],[Đơn Giá]]*Danh_sách_Kiểm_kê[[#This Row],[Số lượng Còn Hàng]] -> 8,624,000.00 ₫ | I28: 21 | J28: 8 | K28: 50
